Cogmind - Beta 9.4 @@@ ROGUE MODE // 2020.02.04 @ 16:35:51 // AFD2018/Launchers Player: sideriver81 Result: Self-destructed Performance ------------- Evolutions (3) 1500 Regions Visited (6) 1200 Robots Destroyed (85) 425 Value Destroyed (2403) 2403 Prototype IDs (2) 40 Alien Tech Used (0) 0 Bonus (277) 277 TOTAL SCORE: 5845 Bonus ------- High Alert Combat Kills 277 Cogmind --------- Core Integrity 485/700 Matter 15/300 Energy 63/100 System Corruption 3% Temperature Cool (0) Movement Core (200) Ox3 Location -7/Factory Parts ------- > --- POWER (2) -------- (None) > --- PROPULSION (5) --- (None) > --- UTILITY (4) ------ Small Storage Unit Advanced Signal Interpreter > --- WEAPON (2) ------- Proton Missile Launcher > --- INVENTORY (6) ---- Improved Terrain Scanner Proton Missile Launcher Proton Missile Launcher Rocket Array Great Maul Peak State ------------ > --- POWER ------------ Nuclear Core Light Nuclear Core > --- PROPULSION ------- Aluminum Leg Carbon-fiber Leg Carbon-fiber Leg Carbon-fiber Leg Carbon-fiber Leg > --- UTILITY ---------- Improved Heat Sink Advanced Heat Sink Small Storage Unit Improved Light Armor Plating > --- WEAPON ----------- Advanced EMP Blaster Rocket Array > --- INVENTORY -------- Improved Terrain Scanner Proton Missile Launcher Proton Missile Launcher Proton Missile Launcher Rocket Array Great Maul [Rating: 42] Favorites ----------- Power Light Nuclear Core Engine Ion Engine Power Core Light Nuclear Core Propulsion Wheel Treads Light Treads Leg Aluminum Leg Wheel Wheel Hover Unit Gravmag System Flight Unit Flight Unit Utility Small Storage Unit Device Improved Heat Sink Storage Small Storage Unit Processor Advanced Signal Interpreter Protection Light Armor Plating Weapon EMP Blaster Launcher EMP Blaster Build | -11 -10 -9 -9 -8 -8 -7 ------- Run | Scr Mat Mat Min Mat Sto Fac Slots Evolved 6 | . . 2 . 2 . 2 Power 1 | . . 1 . . . . Propulsion 3 | . . 1 . 1 . 1 Utility 2 | . . . . 1 . 1 Weapon . | . . . . . . . Parts Attached 58 | 4 . 7 3 2 12 30 Power 7 | . . 2 . . 2 3 Engine 3 | . . 2 . . . 1 Core 4 | . . . . . 2 2 Reactor . | . . . . . . . Propulsion 23 | 3 . 2 1 . 6 11 Treads 1 | . . 1 . . . . Leg 14 | . . . . . 4 10 Wheel 6 | 3 . 1 1 . 1 . Hover 1 | . . . . . . 1 Flight 1 | . . . . . 1 . Utility 8 | 1 . 1 . 1 . 5 Device 2 | . . . . 1 . 1 Storage 2 | 1 . . . . . 1 Processor 1 | . . . . . . 1 Hackware . | . . . . . . . Protection 3 | . . 1 . . . 2 Artifact . | . . . . . . . Weapon 20 | . . 2 2 1 4 11 Energy Gun . | . . . . . . . Energy Cannon . | . . . . . . . Ballistic Gun . | . . . . . . . Ballistic Cannon . | . . . . . . . Launcher 20 | . . 2 2 1 4 11 Special Weapon . | . . . . . . . Impact Weapon . | . . . . . . . Slashing Weapon . | . . . . . . . Piercing Weapon . | . . . . . . . Special Melee Weapon . | . . . . . . . Unidentified Prototypes 2 | . . . . . . 2 Parts Lost 15 | . . 1 . . . 14 Power 3 | . . . . . . 3 Propulsion 7 | . . 1 . . . 6 Utility 3 | . . . . . . 3 Weapon 2 | . . . . . . 2 Highest Loss Streak 8 | . . 1 . . . 8 Average Slot Usage (%) 85 | . 71 69 100 87 94 85 Engine 5 | . . 4 22 18 12 . Core 6 | . . . . . 4 11 Treads 2 | . . . 11 9 6 . Leg 16 | . . . . . 8 30 Wheel 11 | . 28 29 22 18 14 . Device 7 | . . . . 6 9 11 Storage 8 | . 14 11 11 9 9 7 Protection 5 | . . 1 11 9 9 5 Launcher 17 | . 28 22 22 18 18 13 Naked Turns . | . . . . . . . Heaviest Build 36 | 10 10 27 27 28 32 36 Greatest Support 70 | 20 20 30 20 20 43 70 Greatest Overweight (x) 3 | 1 . 1 1 1 2 3 Average Overweight (x) . | . . . 1 1 . . Largest Inventory Capacity 8 | 6 6 6 6 6 6 8 Average Capacity 5 | 4 6 6 6 6 6 6 Most Carried 6 | 5 5 6 6 6 6 6 Average Carried 5 | 4 5 5 5 5 5 5 Final Capacity 6 | 6 6 6 6 6 6 6 Final Carried 6 | 5 5 6 6 6 6 5 Class Distribution -------------------- 80% | Scavenger-Mutant 19% | Mutant Dominant Class ---------------- Mutant | -10/Materials Scavenger-Mutant | -9/Materials Scavenger-Mutant | -9/Mines Scavenger-Mutant | -8/Materials Scavenger-Mutant | -8/Storage Scavenger-Mutant | -7/Factory Resources | -11 -10 -9 -9 -8 -8 -7 ----------- Run | Scr Mat Mat Min Mat Sto Fac Matter Collected 1328 | 112 59 339 128 . 221 469 Remotely . | . . . . . . . Salvage Created 3021 | 126 59 291 320 . 440 1785 Parts 155 | 16 . 10 16 . 23 90 Haulers Intercepted 2 | . . . . . 1 1 Recyclers Shooed 5 | . . 1 . . 3 1 Parts Field Recycled . | . . . . . . . Retrieved Matter . | . . . . . . . Parts Self-Destructed . | . . . . . . . Prevented . | . . . . . . . Kills | -11 -10 -9 -9 -8 -8 -7 ------- Run | Scr Mat Mat Min Mat Sto Fac Combat Hostiles Destroyed 48 | . 2 3 9 . 9 25 AOE 45 | . 2 3 8 . 9 23 Classes Destroyed 14 | 3 1 2 1 . 3 4 Worker 8 | 1 . . . . 1 6 Builder 9 | . . . . . . 9 Tunneler 8 | 5 . 1 1 . . 1 Hauler 2 | . . . . . 1 1 Recycler 7 | 1 . 1 . . . 5 Mechanic 1 | . . . . . . 1 Watcher 2 | . . . . . 1 1 Swarmer 13 | . . . 3 . 3 7 Grunt 24 | . 2 1 6 . 5 10 Brawler 2 | . . 1 . . . 1 Duelist 3 | . . . . . 1 2 Sentry 3 | . . 1 . . . 2 Hunter 1 | . . . . . . 1 Programmer 2 | . . . . . . 2 Best Kill Streak 11 | 4 2 2 3 . 11 9 Combat Bots Only 9 | . 2 2 3 . 9 4 Max Kills in Single Turn 7 | 3 1 1 2 . 2 7 Gunslinging . | . . . . . . . Exploded 4 | . 1 1 2 . 2 4 Melee . | . . . . . . . Uniques/NPCs Destroyed . | . . . . . . . Combat | -11 -10 -9 -9 -8 -8 -7 -------- Run | Scr Mat Mat Min Mat Sto Fac Damage Taken 1811 | 23 62 120 124 . 139 1343 Core 289 | . 14 . 30 . 30 215 Absorbed by Shields . | . . . . . . . Core Remaining (%) 95 | 100 94 . 92 . 94 . Volleys Fired 102 | 9 5 17 15 . 14 42 Largest 2 | 1 1 1 2 . 2 2 Hottest 75 | 30 30 33 66 . 66 75 Shots Fired 126 | 9 5 17 21 . 23 51 Gun . | . . . . . . . Cannon . | . . . . . . . Launcher 126 | 9 5 17 21 . 23 51 Special . | . . . . . . . Kinetic . | . . . . . . . Thermal . | . . . . . . . Explosive 33 | 9 5 . 2 . 1 16 Electromagnetic 93 | . . 17 19 . 22 35 Robot Hit Streak 8 | 4 3 4 3 . 5 8 Robot Miss Streak 7 | 1 3 2 5 . 2 7 Penetration Max . | . . . . . . . Secondary Targets . | . . . . . . . Shots Hit Robots 77 | 7 3 7 9 . 13 38 Core Hits 151 | 8 5 7 13 . 19 99 Critical Hits . | . . . . . . . Critical Kills . | . . . . . . . Critical Parts Destroyed . | . . . . . . . Melee Attacks . | . . . . . . . Impact . | . . . . . . . Slashing . | . . . . . . . Piercing . | . . . . . . . Sneak Attacks . | . . . . . . . Combat Hostiles . | . . . . . . . Follow-up Attacks . | . . . . . . . Damage Inflicted 5779 | 338 282 308 640 . 836 3375 Guns . | . . . . . . . Cannons . | . . . . . . . Explosions 5768 | 338 282 297 640 . 836 3375 Melee . | . . . . . . . Ramming 11 | . . 11 . . . . Kinetic . | . . . . . . . Thermal 555 | . . . 31 . 40 484 Explosive 2502 | 338 282 . 185 . 203 1494 Electromagnetic 2711 | . . 297 424 . 593 1397 Impact . | . . . . . . . Slashing . | . . . . . . . Piercing . | . . . . . . . Highest Corruption 3 | . 1 . . . . 3 Average Corruption 2 | . 1 . . . . 2 Corruption Purged . | . . . . . . . Effects 4 | . 1 . . . . 3 Message Errors 2 | . . . . . . 2 Matter Fused 1 | . . . . . . 1 Data Loss (minor) 1 | . 1 . . . . . Overload Shots . | . . . . . . . Overflow Damage 111 | 18 . . 17 . 14 62 Projectiles . | . . . . . . . Explosions 111 | 18 . . 17 . 14 62 Melee . | . . . . . . . Knockbacks . | . . . . . . . Impact . | . . . . . . . Kinetic . | . . . . . . . Secondary . | . . . . . . . Self-Inflicted Damage 334 | 23 . 32 . . 22 257 Shots 16 | 1 . 2 . . 2 11 Rammed 1 | . . 1 . . . . Targets Rammed 1 | . . 1 . . . . Kicked . | . . . . . . . Crushed . | . . . . . . . Highest Temperature 67 | 5 5 2 67 . 22 7 Average Temperature 23 | 5 5 2 25 . 13 7 Received Heat Transfer 396 | . 36 27 54 . 45 234 Siege Activations . | . . . . . . . Robots Corrupted 3 | . . . 1 . . 2 Combat Hostiles 3 | . . . 1 . . 2 Parts Fried 11 | . . 1 1 . 3 6 Impact Corruptions . | . . . . . . . Robots Melted . | . . . . . . . Combat Hostiles . | . . . . . . . Parts Melted . | . . . . . . . Heat Transferred 450 | . . . . . 50 400 Parts Sabotaged . | . . . . . . . Parts Stolen . | . . . . . . . Parts Stripped . | . . . . . . . Power Chain Reactions 13 | . . 1 4 . 1 7 Missiles Intercepted . | . . . . . . . Alert | -11 -10 -9 -9 -8 -8 -7 ------- Run | Scr Mat Mat Min Mat Sto Fac Peak Influence 1064 | 35 91 213 337 131 414 1064 Average Influence 309 | 21 50 107 238 131 219 499 Maximum Alert Level 3 | . . 1 1 . 2 3 Low Security (%) 39 | 100 100 93 23 100 56 2 Level 1 30 | . . 6 76 . 42 33 Level 2 18 | . . . . . 1 40 Level 3 11 | . . . . . . 23 Level 4 . | . . . . . . . Level 5 . | . . . . . . . High Security . | . . . . . . . Max Security . | . . . . . . . Squads Dispatched 6 | . . . . . 1 5 Investigation 1 | . . . . . 1 . Extermination 1 | . . . . . . 1 Reinforcement 1 | . . . . . . 1 Assault 2 | . . . . . . 2 Garrison 1 | . . . . . . 1 Intercept . | . . . . . . . Construction Impeded 1 | . . . . . . 1 Haulers Reinforced . | . . . . . . . Stealth | -11 -10 -9 -9 -8 -8 -7 --------- Run | Scr Mat Mat Min Mat Sto Fac Distress Signals 4 | . 1 . . . 2 1 Communications Jammed . | . . . . . . . Distress Signals . | . . . . . . . Times Spotted 63 | . 4 5 10 . 12 32 Peak Tracking Total 5 | . 4 3 3 . 3 5 Tactical Retreats 4 | . . 1 1 . 1 1 Traps | -11 -10 -9 -9 -8 -8 -7 ------- Run | Scr Mat Mat Min Mat Sto Fac Traps Triggered 9 | . 1 3 . . 1 4 Indirectly 4 | . . 3 . . 1 . Trap Hack Attempts . | . . . . . . . Triggered . | . . . . . . . Disarmed . | . . . . . . . Reprogrammed . | . . . . . . . Reused . | . . . . . . . Traps Extracted . | . . . . . . . Installed . | . . . . . . . Triggered . | . . . . . . . Machines | -11 -10 -9 -9 -8 -8 -7 ---------- Run | Scr Mat Mat Min Mat Sto Fac Machines Disabled 20 | . . 4 . . 2 14 Max in Single Turn 4 | . . 2 . . 2 4 Garrison Access 1 | . . . . . . 1 Machines Sabotaged . | . . . . . . . Garrisons Compromised . | . . . . . . . Overloaded Fab Kills . | . . . . . . . Fab Network Shutdowns . | . . . . . . . Hacking | -11 -10 -9 -9 -8 -8 -7 --------- Run | Scr Mat Mat Min Mat Sto Fac Machines Accessed 9 | . 1 2 1 . 3 2 Terminals 6 | . 1 2 . . 2 1 Fabricators 1 | . . . . . . 1 Repair Stations . | . . . . . . . Recycling Units 1 | . . . . . 1 . Scanalyzers . | . . . . . . . Garrison Access . | . . . . . . . Total Hacks 17 | . 3 4 1 . 7 2 Successful 12 | . 1 3 1 . 6 1 Failed 5 | . 2 1 . . 1 1 Catastrophic . | . . . . . . . Database Lockouts . | . . . . . . . Manual 9 | . 2 4 . . 3 . Terminals 13 | . 3 4 . . 5 1 Fabricators 1 | . . . . . . 1 Repair Stations . | . . . . . . . Recycling Units 2 | . . . . . 2 . Scanalyzers . | . . . . . . . Garrison Access . | . . . . . . . Terminal Hacks 7 | . 1 2 1 . 3 . Open Door 2 | . . . 1 . 1 . Level Access Points 1 | . . . . . 1 . Locate Traps 4 | . 1 2 . . 1 . Fabricator Hacks 1 | . . . . . . 1 Build 1 | . . . . . . 1 Repair Station Hacks . | . . . . . . . Recycling Unit Hacks 1 | . . . . . 1 . Report Inventory 1 | . . . . . 1 . Scanalyzer . | . . . . . . . Garrison Access Hacks . | . . . . . . . Unauthorized Hacks 7 | . . 3 . . 4 . Terminals 3 | . . 1 . . 2 . Botnet 3 | . . 1 . . 2 . Fabricators . | . . . . . . . Repair Stations . | . . . . . . . Recycling Units . | . . . . . . . Scanalyzers . | . . . . . . . Garrison Access . | . . . . . . . Data Cores Recovered . | . . . . . . . Used . | . . . . . . . Hacking Detections 6 | . 1 1 . . 2 2 Full Trace Events . | . . . . . . . Feedback Events . | . . . . . . . Feedback Blocked . | . . . . . . . Robot Schematics Acquired . | . . . . . . . Robots Built . | . . . . . . . Matter . | . . . . . . . Time . | . . . . . . . Total Robot Build Rating . | . . . . . . . Part Schematics Acquired . | . . . . . . . Parts Built 2 | . . . . . . 2 Matter 212 | . . . . . . 212 Time 106 | . . . . . . 106 Total Part Build Rating 12 | . . . . . . 12 Parts Repaired . | . . . . . . . Time . | . . . . . . . Parts Recycled . | . . . . . . . Recycled Matter . | . . . . . . . Retrieved Matter . | . . . . . . . Retrieved Components . | . . . . . . . Parts Scanalyzed . | . . . . . . . Part Schematics Acquired . | . . . . . . . Parts Damaged . | . . . . . . . Bothacking | -11 -10 -9 -9 -8 -8 -7 ------------ Run | Scr Mat Mat Min Mat Sto Fac Used RIF Installer . | . . . . . . . Robots Hacked . | . . . . . . . Non-combat . | . . . . . . . Combat . | . . . . . . . Robot Hacks Applied . | . . . . . . . Relay Couplers Released 3 | . . . . . . 3 Machine Destruction 3 | . . . . . . 3 Robots Rewired . | . . . . . . . Allies Hacked . | . . . . . . . Hacks Repelled . | . . . . . . . Allies | -11 -10 -9 -9 -8 -8 -7 -------- Run | Scr Mat Mat Min Mat Sto Fac Total Allies . | . . . . . . . Largest Group . | . . . . . . . Highest-Rated Group . | . . . . . . . Highest-Rated Ally . | . . . . . . . Total Orders . | . . . . . . . Ally Attacks . | . . . . . . . Total Damage . | . . . . . . . Kills . | . . . . . . . Allies Corrupted . | . . . . . . . Allies Melted . | . . . . . . . Intel | -11 -10 -9 -9 -8 -8 -7 ------- Run | Scr Mat Mat Min Mat Sto Fac Robot Analysis Total . | . . . . . . . Derelict Logs Recovered . | . . . . . . . Drone Launches . | . . . . . . . Drone Recoveries . | . . . . . . . Exploration | -11 -10 -9 -9 -8 -8 -7 ------------- Run | Scr Mat Mat Min Mat Sto Fac Turns Passed 2244 | 159 101 363 255 33 297 1036 Spaces Moved 1738 | 93 114 347 224 32 231 697 Core 47 | 25 . . . . . 22 Treads . | . . . . . . . Legs 648 | . . . . . 59 589 Wheels 957 | 68 114 347 224 32 172 . Hover 86 | . . . . . . 86 Flight . | . . . . . . . Fastest Speed 60 | 80 80 80 90 90 80 60 Average Speed 101 | 85 80 81 90 90 97 122 Slowest Speed 200 | 100 80 90 90 90 180 200 Overloaded Moves . | . . . . . . . Propulsion Burnouts . | . . . . . . . Robots Hopped . | . . . . . . . Cave-ins Triggered . | . . . . . . . Exploration Rate (%) 25 | 4 29 24 57 7 34 26 Regions Visited 6 Branch Regions 2 Pre-discovered Areas . | . . . . . . . Known Exits Taken 1 | . . . . . 1 . Unknown Exits Taken 5 | 1 1 1 1 1 . . Scrap Searched . | . . . . . . . Spaces Dug . | . . . . . . . Terrain Destroyed 357 | 45 32 4 24 . 29 223 Melee . | . . . . . . . Projectile . | . . . . . . . AOE 357 | 45 32 4 24 . 29 223 Actions | -11 -10 -9 -9 -8 -8 -7 --------- Run | Scr Mat Mat Min Mat Sto Fac Total 2076 | 163 118 409 257 36 282 811 Wait 115 | 54 . 32 11 1 7 10 Move 1732 | 92 113 346 223 31 230 697 Hop . | . . . . . . . Pick Up 21 | 2 . 3 1 1 5 9 Fast Attach 35 | 3 . 5 1 . 8 18 Attach 4 | . . 1 . 1 . 2 Detach 2 | . . . 1 . . 1 Swap 19 | 1 . 1 2 1 4 10 Drop 45 | 2 . 3 3 1 14 22 Fire 102 | 9 5 17 15 . 14 42 Melee . | . . . . . . . Ram 1 | . . 1 . . . . Kick . | . . . . . . . Crush . | . . . . . . . Escape Stasis . | . . . . . . . Rewire . | . . . . . . . Trap . | . . . . . . . Miscellaneous . | . . . . . . . Route ------- -11/Scrapyard -10/Materials -9/Materials -9/Mines -8/Materials -8/Storage -7/Factory (discovered 1 exit: *Fac) History --------- Turn | Location | Event 1 | -11/Scrapyard | Discovered new exit (range 2) 160 | -11/Scrapyard | Entered Materials 248 | -10/Materials | Discovered new exit (range 15) 261 | -10/Materials | Entered another Materials area 261 | -9/Materials | Evolved 2 slots: Power x1, Propulsion x1 556 | -9/Materials | Discovered new exit (range 16) 624 | -9/Materials | Entered Mines 827 | -9/Mines | Build established: Scavenger-Mutant 848 | -9/Mines | Met a Derelict who couldn't figure out how to use a Trap Extractor 871 | -9/Mines | Discovered new exit (range 6) 879 | -9/Mines | Entered Materials 879 | -8/Materials | Evolved 2 slots: Propulsion x1, Utility x1 901 | -8/Materials | Discovered new exit (range 11) 912 | -8/Materials | Entered Storage 954 | -8/Storage | Identified exit to Factory 1131 | -8/Storage | Destroyed 9 combat bots 1209 | -8/Storage | Entered Factory 1209 | -7/Factory | Evolved 2 slots: Propulsion x1, Utility x1 1623 | -7/Factory | Found Prototype Launcher 1623 | -7/Factory | Identified Rocket Array 1630 | -7/Factory | Found Rocket Array 1880 | -7/Factory | Fabricated KE Penetrator? 2009 | -7/Factory | First assault squad dispatched 2102 | -7/Factory | Lost 8 parts (1p4n2u1w) 2191 | -7/Factory | Discovered new exit (range 16) 2208 | -7/Factory | Identified exit to Factory 2245 | -7/Factory | Self-destructed Last Messages --------------- 02179_ U-05 Engineer lays Concrete. 02180_ The unstable cave ceiling collapses. 02180_ U-05 Engineer lays Concrete. 02182_ The unstable cave ceiling collapses. 02182_ U-05 Engineer lays Concrete. 02185_ The unstable cave ceiling collapses. 02187_ U-05 Engineer builds a Wall. 02187_ K-01 Serf collects debris. 02191_ EXIT=FOUND 02208_ EXIT=IDENTIFIED: FACTORY 02237_ Fusion Modulator explodes. 02237_ SINJ&M9KO&|CW|1928S99WPCGXU5B MAXS/ 02237_ Fusion Modulator explodes. 02237_ Destroyed Lgt. Treads. 02238_ The unstable cave ceiling collapses. 02239_ Rocket Array destroyed. 02244_ Y-54 Guardian heat damages Imp. Heat Sink, Imp. Deuterium Engine, Imp. Light Armor Plating, Flak Gun. 02244_ Gravmag System destroyed. 02244_ Lgt. Angular Momentum Engine destroyed. Map ----- +----------------------------------------------------+ | ????????????????????????????# #??????????????? | | ????????????????????????????# #??????????????? | | ????????????????????????????# ???????????????? | | ???????????????????????????# ???????????????? | | ????????????????????????????? ???????????????? | | ##???????????????????????????????????????????????? | | #????????????????????????????????????????????????? | | ????????????????????????????????????????????????? | | ?????????????????????????????????????????????????? | | ?????????????????????????????????????????????????? | | ?????????????????????????????????????????????????? | | ?????????? ????????????????????????????????????? | | " ""???? ????????????????????????????????????? | | ??# ???????????????????????????????????? | | "??????# #???????????????????????????????????? | | ???????# #???????????????????????????????????? | | ???????# ##??##?####?????????????????????????? | | ???????# ## ## ## ?????????????????????????? | | ?????# ; ;;?????????????????????????? | | ###+#??# ^ ;;###??????????????????????? | | #?# #??# #??????????????????????? | | #?# #??# #??????????????????????? | | ### #### #??????????????????????? | | # # #??????????????????????? | | Y #??????????????????????? | | @#??????????????????????? | | #??????????????????????? | | # < #??????????????????????? | | ####+### #??????????????????????? | | ?? # #??????????????????????? | | """ ####### #??????????????????????? | | "T" #?????# #??????????????????????? | | ]] " " #?????##############??????????????????????? | | ]] #?????????????????????????????????????????? | | """ #?????????????????????????????????????????? | | """ #?????????????????????????????????????????? | | """ #?????????????????????????????????????????? | | ???????????????????????????????????????????????? | | ?????????????????????????????????????????????????? | | ?????????????????????????????????????????????????? | | ?????????????????????????????????????????????????? | | ?????????????????????????????????????????????????? | | ?????????????????????????????????????????????????? | | ?????????????????????????????????????????????????? | | ?????????????????????????????????????????????????? | | ?????????????????????????????????????????????????? | | ?????????????????????????????????????????????????? | | ?????????????????????????????????????????????????? | | ?????????????????????????????????????????????????? | | ?????????????????????????????????????????????????? | +----------------------------------------------------+ Best States ------------- Heat Dissipation 67 Energy Generation 23 Energy Capacity 415 Matter Stores 300 Matter Capacity 300 Sight Range 16 Terrain Scan Density 10 Armor Coverage 150 Evasion (%) 44 Item Schematics ----------------- None Robot Schematics ------------------ None Fabricated ------------ KE Penetrator | x2 | -7/Factory | Preloaded Alien Tech Used ----------------- None Achievements -------------- None Challenges ------------ None Game ------ Seed RemoteAutogunShielding Manual? 0 Play Time 00:25:15 Cumulative 299.8 hours Start 2020.02.04 @ 16:10:44 End 2020.02.04 @ 16:35:51 Sessions 1 Manual Loads 0 Difficulty Rogue Special Mode AFD2018/Launchers Game No. 123 Rogue 45 Adventurer 48 Explorer 30 Win Type - Total 46 Types 30/5/4/2/2/1/2 Lore% 98 Gallery% 100 Achievement% 88 Wizard Run 0 Options --------- ASCII 0 Keyboard 0 Movement Numpad Keybinds 1 Fullscreen 0 Font 18/Terminus Map View 76x50 Tactical HUD 1 Map Filters NONE Filters NONE Steam 1 RUN: d5a65d82-78d2-4dbf-8eb6-f4c0e516c7bc